Cogmind - Beta 15 @@@ ROGUE MODE // 2025.07.22 @ 22:29:52 Player: jumpy Result: Self-destructed Performance ------------- Evolutions (4) 2000 Regions Visited (6) 1200 Robots Destroyed (34) 170 Value Destroyed (766) 766 Prototype IDs (10) 200 Alien Tech Used (0) 0 Bonus (891) 891 TOTAL SCORE: 5227 Bonus ------- Follower Combat Kills 91 Registered with UFD 300 Met Optimus in HQ 500 Cogmind --------- Core Integrity 802/850 Matter 300/300 Energy 290/290 System Corruption 6% Temperature Cool (0) Movement Walking (120) Location -6/Factory Parts ------- > --- POWER (1) -------- Improved Deuterium Engine > --- PROPULSION (4) --- Aluminum Leg Aluminum Leg Improved Aluminum Leg Carbon-fiber Leg > --- UTILITY (7) ------ Large Storage Unit Improved Sensor Array Improved Signal Interpreter > --- WEAPON (3) ------- Improved EM Pulse Cannon Mini Assault Cannon Power Maul > --- INVENTORY (15) --- Cooled Ion Engine Cooled Ion Engine Improved Deuterium Engine Improved Deuterium Engine Aluminum Leg Aluminum Leg Improved Aluminum Leg Compact Wheel Improved Terrain Scanner Improved Utility Shielding Hardened Light Armor Plating Grenade Launcher Mining Laser CPS Tube (2) Peak State ------------ > --- POWER ------------ Improved Deuterium Engine > --- PROPULSION ------- Aluminum Leg Aluminum Leg Improved Aluminum Leg Carbon-fiber Leg > --- UTILITY ---------- Large Storage Unit Improved Sensor Array Improved Signal Interpreter > --- WEAPON ----------- Improved EM Pulse Cannon Mini Assault Cannon Power Maul > --- INVENTORY -------- Cooled Ion Engine Cooled Ion Engine Improved Deuterium Engine Improved Deuterium Engine Aluminum Leg Aluminum Leg Improved Aluminum Leg Compact Wheel Improved Terrain Scanner Improved Utility Shielding Hardened Light Armor Plating Grenade Launcher Mining Laser CPS Tube [Rating: 34] Favorites ----------- Power Cooled Ion Engine Engine Cooled Ion Engine Propulsion Aluminum Leg Leg Aluminum Leg Wheel Wheel Utility Small Storage Unit Device Advanced Terrain Scanner Storage Small Storage Unit Processor Improved Signal Interpreter Weapon Mini Assault Cannon Energy Gun Improved EM Shotgun Energy Cannon Heavy Ion Cannon Ballistic Gun Light Assault Rifle Ballistic Cannon Mini Assault Cannon Impact Weapon Power Maul Build | -11 -10 -9 -9 -9 -9 -6 ------- Run | Yrd Mat Mat Sto Rec Scr Fac Slots Evolved 8 | . . 2 . . . 6 Power . | . . . . . . . Propulsion 2 | . . 1 . . . 1 Utility 5 | . . 1 . . . 4 Weapon 1 | . . . . . . 1 Parts Attached 37 | 8 . 5 10 . 6 8 Power 6 | 1 . 1 3 . . 1 Engine 6 | 1 . 1 3 . . 1 Core . | . . . . . . . Reactor . | . . . . . . . Propulsion 12 | 2 . 1 5 . 2 2 Treads . | . . . . . . . Leg 10 | 2 . 1 3 . 2 2 Wheel 2 | . . . 2 . . . Hover . | . . . . . . . Flight . | . . . . . . . Utility 8 | 2 . . . . 3 3 Device 4 | 1 . . . . 1 2 Storage 2 | 1 . . . . 1 . Processor 2 | . . . . . 1 1 Hackware . | . . . . . . . Protection . | . . . . . . . Artifact . | . . . . . . . Weapon 11 | 3 . 3 2 . 1 2 Energy Gun 1 | . . . 1 . . . Energy Cannon 2 | . . . . . 1 1 Ballistic Gun 4 | 3 . 1 . . . . Ballistic Cannon 3 | . . 2 1 . . . Launcher . | . . . . . . . Special Weapon . | . . . . . . . Impact Weapon 1 | . . . . . . 1 Slashing Weapon . | . . . . . . . Piercing Weapon . | . . . . . . . Special Melee Weapon . | . . . . . . . Unidentified Prototypes 4 | . . . 4 . . . Corrupted Parts 1 | . . . . . . 1 System Corruption 6 | . . . . . . 6 Parts Lost 6 | . . 4 . . . 2 Power . | . . . . . . . Propulsion 3 | . . 2 . . . 1 Utility 2 | . . 1 . . . 1 Weapon 1 | . . 1 . . . . Highest Loss Streak 4 | . . 4 . . . 2 To Critical Strikes . | . . . . . . . Average Backups 8 | 4 6 6 7 8 9 13 Power 2 | . 1 1 2 3 2 3 Propulsion 2 | 1 2 2 . 2 3 3 Utility 1 | . 1 1 1 1 2 3 Weapon 2 | 1 2 1 2 2 2 2 Tool/Special . | . . . . . . . Unused Backups 14 | . . 1 1 . 1 11 Power 6 | . . 1 . . 1 4 Propulsion 1 | . . . . . . 1 Utility 3 | . . . . . . 3 Weapon 3 | . . . 1 . . 2 Tool/Special 1 | . . . . . . 1 Average Slot Usage (%) 80 | . 100 67 74 77 87 64 Engine 10 | . 14 11 11 11 11 6 Leg 28 | . 28 17 20 33 33 25 Wheel 2 | . . . 9 . . . Device 6 | . 14 6 . . 10 3 Storage 10 | . 14 11 11 11 11 6 Energy Cannon 4 | . . . . . 8 6 Ballistic Gun 2 | . 28 19 . . . . Ballistic Cannon 13 | . . 2 21 22 13 6 Peak Build Rating 34 | 7 7 9 16 14 31 34 Average Rating 16 | 6 7 8 10 14 21 30 On Entrance 10 | . 7 7 7 14 14 24 Naked Turns . | . . . . . . . Heaviest Build 46 | 14 14 21 21 20 46 46 Greatest Support 48 | 20 20 20 30 30 33 48 Greatest Overweight (x) 5 | . . 5 2 . 1 1 Average Overweight (x) . | . . . . . . . Largest Inventory Capacity 15 | 8 8 8 8 8 15 15 Average Capacity 9 | 7 8 8 8 8 10 15 Most Carried 14 | 6 6 8 8 8 13 14 Average Carried 8 | 4 6 6 7 8 9 13 Final Capacity 15 | 8 8 8 8 8 15 15 Final Carried 14 | 6 6 7 8 8 13 14 Class Distribution -------------------- 57% | Commander-Mutant 42% | Mutant Dominant Class ---------------- Mutant | -10/Materials Mutant | -9/Materials Mutant | -9/Storage Commander-Mutant | -9/Recycling Commander-Mutant | -9/Scraptown Mutant | -6/Factory Resources | -11 -10 -9 -9 -9 -9 -6 ----------- Run | Yrd Mat Mat Sto Rec Scr Fac Matter Collected 1296 | 428 4 190 375 42 91 166 Remotely . | . . . . . . . Salvage Created 1161 | 244 15 223 217 98 . 364 Parts 57 | 19 4 14 13 2 . 5 Haulers Intercepted 4 | . . 1 2 . . 1 Recyclers Shooed . | . . . . . . . Parts Field Recycled . | . . . . . . . Retrieved Matter . | . . . . . . . Parts Self-Destructed . | . . . . . . . Prevented . | . . . . . . . Kills | -11 -10 -9 -9 -9 -9 -6 ------- Run | Yrd Mat Mat Sto Rec Scr Fac Combat Hostiles Destroyed 14 | . . 4 4 1 . 5 Guns 4 | . . 4 . . . . Cannons 8 | . . . 4 1 . 3 Classes Destroyed 8 | 3 1 3 1 . . . Worker 2 | 1 . . 1 . . . Tunneler 9 | 9 . . . . . . Hauler 4 | . . 1 2 . . 1 Recycler 2 | 1 . . . 1 . . Operator 3 | . 1 . 2 . . . Swarmer 1 | . . . 1 . . . Grunt 8 | . . 2 2 . . 4 Sentry 5 | . . 2 1 1 . 1 Best Kill Streak 3 | 2 1 3 1 1 . 3 Combat Bots Only 3 | . . 3 1 1 . 3 Max Kills in Single Turn 1 | 1 1 1 1 1 . 1 Gunslinging . | . . . . . . . Exploded . | . . . . . . . Melee . | . . . . . . . Uniques/NPCs Destroyed . | . . . . . . . Combat | -11 -10 -9 -9 -9 -9 -6 -------- Run | Yrd Mat Mat Sto Rec Scr Fac Hostile Shots Fired 137 | . 4 54 24 4 4 47 Missed 41 | . 3 10 9 1 1 17 Hits 96 | . 1 44 15 3 3 30 Projectile 96 | . 1 44 15 3 3 30 Critical Strikes 5 | . . 3 . 1 . 1 Damage Taken 1483 | . 9 654 205 91 30 494 Core 232 | . . 125 44 11 4 48 Absorbed by Shields . | . . . . . . . Core Remaining (%) 84 | 100 100 . . . 54 . Volleys Fired 122 | 37 4 39 24 4 . 14 Largest 2 | 2 2 2 2 2 . 2 Hottest 105 | 40 40 43 70 70 . 105 Shots Fired 236 | 74 8 72 50 8 . 24 Gun 154 | 74 8 72 . . . . Cannon 82 | . . . 50 8 . 24 Launcher . | . . . . . . . Special . | . . . . . . . Kinetic 222 | 74 8 72 50 8 . 10 Thermal 10 | . . . . . . 10 Explosive . | . . . . . . . Electromagnetic 4 | . . . . . . 4 Robot Hit Streak 11 | 5 2 11 8 2 . 8 Robot Miss Streak 5 | 3 2 4 5 2 . 2 Penetration Max . | . . . . . . . Secondary Targets . | . . . . . . . Shots Hit Robots 152 | 42 3 49 32 4 . 22 Core Hits 47 | 15 2 11 10 3 . 6 Critical Kills 1 | 1 . . . . . . Critical Parts Destroyed 4 | . . 1 . . . 3 Critical Strikes 9 | 1 . 1 2 1 . 4 Destroy 2 | 1 . 1 . . . . Blast 4 | . . . 2 1 . 1 Smash 3 | . . . . . . 3 Melee Attacks 9 | . . . . . . 9 Impact 9 | . . . . . . 9 Slashing . | . . . . . . . Piercing . | . . . . . . . Sneak Attacks 1 | . . . . . . 1 Combat Hostiles . | . . . . . . . Follow-up Attacks . | . . . . . . . Damage Inflicted 2690 | 478 35 593 717 80 . 787 Guns 1054 | 478 35 541 . . . . Cannons 1103 | . . . 546 80 . 477 Explosions 223 | . . 52 171 . . . Melee 310 | . . . . . . 310 Ramming . | . . . . . . . Kinetic 1819 | 478 35 541 546 80 . 139 Thermal 204 | . . . . . . 204 Explosive 223 | . . 52 171 . . . Electromagnetic 134 | . . . . . . 134 Impact 310 | . . . . . . 310 Slashing . | . . . . . . . Piercing . | . . . . . . . Highest Corruption 6 | . . . 1 1 1 6 Average Corruption 2 | . . . 1 1 1 6 Corruption Purged . | . . . . . . . Corruption Blocked . | . . . . . . . Effects 16 | . . . 8 . . 8 Message Errors 2 | . . . 1 . . 1 Matter Fused 6 | . . . 3 . . 3 Heat Flow Errors 1 | . . . . . . 1 Energy Discharges 1 | . . . . . . 1 Data Loss (minor) 4 | . . . 2 . . 2 Misfires 2 | . . . 2 . . . Overload Shots . | . . . . . . . Overflow Damage 243 | . . . 12 . . 231 Projectiles 24 | . . . 4 . . 20 Explosions 8 | . . . 8 . . . Melee 211 | . . . . . . 211 Knockbacks 5 | . . . 2 . . 3 Impact 1 | . . . . . . 1 Kinetic 4 | . . . 2 . . 2 Secondary . | . . . . . . . Self-Inflicted Damage 37 | . . 37 . . . . Shots 1 | . . 1 . . . . Rammed . | . . . . . . . Targets Rammed 1 | . . . . . 1 . Kicked 1 | . . . . . 1 . Crushed . | . . . . . . . Highest Temperature 233 | . . 39 26 25 . 233 Average Temperature 20 | . . 6 5 17 . 46 Received Heat Transfer 669 | . . 267 84 60 12 246 Siege Activations . | . . . . . . . Martial Activations . | . . . . . . . Shielding Activations . | . . . . . . . Robots Disrupted . | . . . . . . . Combat Hostiles . | . . . . . . . Robots Corrupted 3 | . . . . . . 3 Combat Hostiles 2 | . . . . . . 2 Parts Fried 3 | . . . 1 . . 2 Impact Corruptions 4 | . . . . . . 4 Robots Melted . | . . . . . . . Combat Hostiles . | . . . . . . . Parts Melted . | . . . . . . . Heat Transferred 259 | . . . . . . 259 Parts Sabotaged . | . . . . . . . Parts Stolen . | . . . . . . . Parts Stripped . | . . . . . . . Power Chain Reactions . | . . . . . . . Alert | -11 -10 -9 -9 -9 -9 -6 ------- Run | Yrd Mat Mat Sto Rec Scr Fac Maximum Alert Level 1 | . . . 1 . . . Low Security (%) 97 | 100 100 100 92 100 . 100 Level 1 2 | . . . 7 . . . Level 2 . | . . . . . . . Level 3 . | . . . . . . . Level 4 . | . . . . . . . Level 5 . | . . . . . . . High Security . | . . . . . . . Max Security . | . . . . . . . Peak Influence 220 | 10 12 54 220 63 . 51 Initial 63 | . . . 4 63 . . Average 24 | . 1 24 49 26 . 9 Influence Increases 893 | 55 17 171 449 66 . 135 Destroy 0b10 Robot/C 400 | . . 80 200 20 . 100 Destroy 0b10 Robot/NC 100 | 55 5 5 25 5 . 5 Destroy Leader 118 | . . 32 74 . . 12 Allied During Kill 74 | . . . 66 8 . . Successful Hack 36 | . 12 . 24 . . . Select Force Hacks 30 | . . . . 30 . . Disable Machine 60 | . . 30 15 . . 15 Destroy Structure 45 | . . 24 15 3 . 3 Partial Spotted 15 | . . . 15 . . . Lose Combat Pursuer 15 | . . . 15 . . . Influence Decreases 893 | 55 17 160 297 229 . 135 Entered New Map 107 | . . . 7 100 . . Time Decay 654 | 55 17 120 230 109 . 123 Lost Part 50 | . . 40 . . . 10 Lost Ally 82 | . . . 60 20 . 2 Squads Dispatched 8 | . . 1 6 . . 1 Investigation 3 | . . . 3 . . . Extermination . | . . . . . . . Reinforcement 4 | . . 1 2 . . 1 Assault . | . . . . . . . Garrison 1 | . . . 1 . . . Intercept . | . . . . . . . Searches Triggered . | . . . . . . . Construction Impeded . | . . . . . . . Haulers Reinforced 1 | . . . . . . 1 Active Scanning Responses . | . . . . . . . Cargo Convoy Interrupts . | . . . . . . . Stealth | -11 -10 -9 -9 -9 -9 -6 --------- Run | Yrd Mat Mat Sto Rec Scr Fac Distress Signals 5 | . . 2 2 . . 1 Communications Jammed . | . . . . . . . Distress Signals . | . . . . . . . Times Spotted 63 | . 5 14 28 2 4 10 Peak Tracking Total 6 | . 3 6 4 1 3 5 Tactical Retreats 1 | . . . 1 . . . Traps | -11 -10 -9 -9 -9 -9 -6 ------- Run | Yrd Mat Mat Sto Rec Scr Fac Traps Triggered 1 | . . . 1 . . . Indirectly . | . . . . . . . Trap Hack Attempts . | . . . . . . . Triggered . | . . . . . . . Disarmed . | . . . . . . . Reprogrammed . | . . . . . . . Reused . | . . . . . . . Traps Extracted . | . . . . . . . Installed . | . . . . . . . Triggered . | . . . . . . . Objects Rigged 2 | . . . 2 . . . Exploded 1 | . . . 1 . . . Machines | -11 -10 -9 -9 -9 -9 -6 ---------- Run | Yrd Mat Mat Sto Rec Scr Fac Machines Disabled 4 | . . 2 1 . . 1 Max in Single Turn 2 | . . 2 1 . . 1 Machines Repaired . | . . . . . . . Machines Dismantled . | . . . . . . . Machines Sabotaged . | . . . . . . . Overloaded Fab Kills . | . . . . . . . Hacking | -11 -10 -9 -9 -9 -9 -6 --------- Run | Yrd Mat Mat Sto Rec Scr Fac Machines Accessed 11 | . 1 . 6 2 2 . Terminals 7 | . 1 . 5 1 . . Fabricators . | . . . . . . . Repair Stations . | . . . . . . . Recycling Units 1 | . . . . 1 . . Scanalyzers . | . . . . . . . Garrison Access 1 | . . . 1 . . . Total Hacks 38 | . 3 . 19 5 11 . Successful 20 | . 2 . 4 3 11 . Failed 18 | . 1 . 15 2 . . Catastrophic 1 | . . . 1 . . . Database Lockouts . | . . . . . . . Manual 13 | . 1 . 7 5 . . Terminals 22 | . 3 . 15 4 . . Fabricators . | . . . . . . . Repair Stations . | . . . . . . . Recycling Units 1 | . . . . 1 . . Scanalyzers . | . . . . . . . Garrison Access 4 | . . . 4 . . . Terminal Hacks 14 | . 1 . 2 . 11 . Record 5 | . . . . . 5 . Robot Analysis 6 | . . . . . 6 . Open Door 1 | . . . 1 . . . Branch Access Points 1 | . 1 . . . . . Zone Layout 1 | . . . 1 . . . Fabricator Hacks . | . . . . . . . Repair Station Hacks . | . . . . . . . Recycling Unit Hacks . | . . . . . . . Scanalyzer . | . . . . . . . Garrison Access Hacks . | . . . . . . . Unauthorized Hacks 6 | . 1 . 2 3 . . Terminals 5 | . 1 . 2 2 . . Botnet 3 | . 1 . 1 1 . . Detonate 1 | . . . 1 . . . Skim 1 | . . . . 1 . . Fabricators . | . . . . . . . Repair Stations . | . . . . . . . Recycling Units 1 | . . . . 1 . . Tunnel 1 | . . . . 1 . . Scanalyzers . | . . . . . . . Garrison Access . | . . . . . . . Data Cores Recovered 1 | . 1 . . . . . Used . | . . . . . . . Hacking Detections 7 | . 1 . 6 . . . Full Trace Events 3 | . . . 3 . . . Feedback Events . | . . . . . . . Feedback Blocked . | . . . . . . . Robot Schematics Acquired . | . . . . . . . Robots Built . | . . . . . . . Authchips . | . . . . . . . Time . | . . . . . . . Total Robot Build Rating . | . . . . . . . Part Schematics Acquired . | . . . . . . . Parts Built . | . . . . . . . Authchips . | . . . . . . . Time . | . . . . . . . Total Part Build Rating . | . . . . . . . Parts Repaired . | . . . . . . . Time . | . . . . . . . Parts Recycled . | . . . . . . . Recycled Matter . | . . . . . . . Retrieved Matter . | . . . . . . . Retrieved Components . | . . . . . . . Parts Scanalyzed . | . . . . . . . Part Schematics Acquired . | . . . . . . . Parts Damaged . | . . . . . . . Bothacking | -11 -10 -9 -9 -9 -9 -6 ------------ Run | Yrd Mat Mat Sto Rec Scr Fac Used RIF Installer . | . . . . . . . Robots Hacked . | . . . . . . . Non-combat . | . . . . . . . Combat . | . . . . . . . Robot Hacks Applied . | . . . . . . . Relay Couplers Released . | . . . . . . . Fabnet Peak Effective % . | . . . . . . . Robots Rewired . | . . . . . . . Allies Hacked . | . . . . . . . Hacks Repelled . | . . . . . . . Allies | -11 -10 -9 -9 -9 -9 -6 -------- Run | Yrd Mat Mat Sto Rec Scr Fac Total Allies 10 | . . . 10 . . . Largest Group 10 | . . . 10 7 6 2 Highest-Rated Group 88 | . . . 88 64 56 24 Highest-Rated Ally 16 | . . . 16 16 16 16 Total Orders . | . . . . . . . Ally Attacks 67 | . . . 46 2 11 8 Total Damage 586 | . . . 384 27 89 86 Kills 6 | . . . 6 . . . Allies Corrupted 1 | . . . . . . 1 Allies Melted . | . . . . . . . Intel | -11 -10 -9 -9 -9 -9 -6 ------- Run | Yrd Mat Mat Sto Rec Scr Fac Active Infowar (turns) 2497 | 233 149 170 . . 1720 225 Sensors 139 | . . . . . . 139 Terrain 1806 | . . . . . 1720 86 Seismic 552 | 233 149 170 . . . . Robot Analysis Total 6 | . . . . . 6 . Derelict Logs Recovered . | . . . . . . . Drone Launches . | . . . . . . . Drone Recoveries . | . . . . . . . Exploration | -11 -10 -9 -9 -9 -9 -6 ------------- Run | Yrd Mat Mat Sto Rec Scr Fac Turns Passed 4242 | 487 149 283 808 270 1817 428 Spaces Moved 2727 | 308 105 94 540 194 1273 213 Core 5 | 3 . 2 . . . . Treads . | . . . . . . . Legs 2512 | 305 105 92 330 194 1273 213 Wheels 210 | . . . 210 . . . Hover . | . . . . . . . Flight . | . . . . . . . Fastest Speed 50 | 50 120 120 90 120 120 120 Average Speed 132 | 119 120 152 117 120 140 153 Slowest Speed 300 | 120 120 300 260 120 190 190 Overloaded Moves . | . . . . . . . Propulsion Burnouts . | . . . . . . . Robots Hopped . | . . . . . . . Potential Cave-ins . | . . . . . . . Cave-ins Triggered . | . . . . . . . Exploration Rate (%) 37 | 10 18 14 82 43 86 7 Regions Visited 6 Branch Regions 3 Pre-discovered Areas 1 | . . . . 1 . . Known Exits Taken . | . . . . . . . Unknown Exits Taken 6 | 1 1 1 1 1 1 . Scrap Searched 2 | . . . . . 2 . Spaces Dug . | . . . . . . . Terrain Destroyed 65 | . . 44 16 2 . 3 Melee . | . . . . . . . Projectile 5 | . . . . 2 . 3 AOE 60 | . . 44 16 . . . Terrain Rammed . | . . . . . . . Walls Destroyed . | . . . . . . . Machines Disabled . | . . . . . . . Actions | -11 -10 -9 -9 -9 -9 -6 --------- Run | Yrd Mat Mat Sto Rec Scr Fac Total 3098 | 357 121 170 664 223 1294 269 Wait 168 | . 13 26 78 26 6 19 Move 2722 | 307 104 93 539 193 1273 213 Hop . | . . . . . . . Pick Up 19 | 5 . 3 4 . 4 3 Fast Attach 16 | 7 . 1 1 . 3 4 Attach 7 | . . 1 4 . . 2 Detach 1 | . . . 1 . . . Swap 21 | 1 . 4 8 . 5 3 Drop 13 | . . 3 5 . 3 2 Fire 122 | 37 4 39 24 4 . 14 Melee 9 | . . . . . . 9 Ram . | . . . . . . . Kick . | . . . . . . . Crush . | . . . . . . . Escape Stasis . | . . . . . . . Rewire . | . . . . . . . Trap . | . . . . . . . Miscellaneous . | . . . . . . . Route ------- -11/Scrapyard -10/Materials (discovered 2 exits: [*Mat] / Min) -9/Materials -9/Storage -9/Recycling -9/Scraptown (discovered 2 exits: [*Fac x2]) -6/Factory History --------- Turn | Location | Event 11 | -11/Scrapyard | Discovered new exit (range 15) 488 | -11/Scrapyard | Entered Materials 489 | -10/Materials | Build established: Mutant 573 | -10/Materials | Discovered new exit (range 12) 576 | -10/Materials | Identified exit to Mines 637 | -10/Materials | Entered another Materials area 637 | -9/Materials | Evolved 2 slots: Propulsion x1, Utility x1 865 | -9/Materials | Lost 4 parts (2n1u1w) 902 | -9/Materials | Discovered new exit (range 6) 920 | -9/Materials | Entered Storage 995 | -9/Storage | Met 01-MTF 1357 | -9/Storage | Assisted by bots powering up and referring to "LRC-V3" 1500 | -9/Storage | Garrison activated, responded to threat 1661 | -9/Storage | Build established: Commander-Mutant 1699 | -9/Storage | Used back door to open Recycling access 1699 | -9/Storage | Discovered new exit (range 4) 1723 | -9/Storage | Lost 3 allies 1728 | -9/Storage | Entered Recycling 1728 | -9/Recycling | Accompanied by 8 allies (01-MTF) 1934 | -9/Recycling | Scanned before Scraplab entrance 1966 | -9/Recycling | Entered Scraplab 1975 | -9/Recycling | Discovered new exit (range 3) 1998 | -9/Recycling | Entered Scraptown 1998 | -9/Scraptown | Accompanied by 6 allies 2001 | -9/Scraptown | System corruption cleaned by C-Scrubber 2172 | -9/Scraptown | Heard Great Nut preacher, LISTEN AND RECITE! 2210 | -9/Scraptown | Visited Shadow of the Wyrm 2230 | -9/Scraptown | Visited The Evicted 2257 | -9/Scraptown | Visited Cyclists 2306 | -9/Scraptown | Discovered new exit (range 11) 2689 | -9/Scraptown | Visited SPCMW 2700 | -9/Scraptown | Visited Junk Repository 2731 | -9/Scraptown | Visited UFD Registry 2731 | -9/Scraptown | Registered with UFD as "Meganuts" 2772 | -9/Scraptown | Visited Analyses Database 2802 | -9/Scraptown | Visited A0-MCA Data Center 2812 | -9/Scraptown | Given a B+ rating by A0-MCA 2817 | -9/Scraptown | Found A0-MCA's Component Scanner 2886 | -9/Scraptown | Visited Junk Repository 2931 | -9/Scraptown | Visited Curators Association 2949 | -9/Scraptown | Visited Abandonware Association 2973 | -9/Scraptown | Learned abandonware demo "TRNCOAT.EXE" 2973 | -9/Scraptown | Learned abandonware demo "POISON.EXE" 3003 | -9/Scraptown | Visited DA-N13 Charitable Foundation 3015 | -9/Scraptown | Found DCF Scrap (31 items) 3258 | -9/Scraptown | Visited Chapter 10 3288 | -9/Scraptown | Visited Junk Cannon Lab 3342 | -9/Scraptown | Visited Science Guys 3707 | -9/Scraptown | Met Optimus 3707 | -9/Scraptown | Accepted into 0bPrime 3805 | -9/Scraptown | Civil war broke out across Scraptown 3808 | -9/Scraptown | Discovered new exit (range 3) 3815 | -9/Scraptown | Entered Factory 3815 | -6/Factory | Accompanied by 2 allies 3815 | -6/Factory | Evolved 6 slots: Propulsion x1, Utility x4, Weapon x1 4129 | -6/Factory | Build established: Mutant 4243 | -6/Factory | Self-destructed Last Messages --------------- 04163_ R-10 Processor collects Corrupted Hvy. Laser. 04167_ Sneak attack on A-15 Conveyor. 04167_ Destroyed Adv. Weight Redist. System. 04167_ A-15 Conveyor system corrupted by crushing effect. 04167_ A-15 Conveyor calls for reinforcements. 04167_ ALERT: Hostile activity reported, dispatching reinforcements to area. 04168_ R-10 Processor collects Corrupted Lgt. Angular Momentum Engine. 04174_ K-01 Serf cleans the Neutrino Reactor. 04184_ K-01 Serf collects debris. 04220_ A-15 Conveyor suffers critical hit (Smash). 04220_ Destroyed Imp. Ion Engine. 04220_ A-15 Conveyor system corrupted by crushing effect. 04221_ K-01 Serf collects debris. 04226_ Acquired 57 matter. 04228_ K-01 Serf collects debris. 04231_ Critical hit (Burn: +37). 04232_ K-01 Serf collects debris. 04232_ W-25 Informer sends out distress signal. 04234_ R-10 Processor collects Prototype Energy Gun. Map ----- +----------------------------------------------------+ | ?????????????????????????????????????????????????? | | ???????????????????????????????????? ???????????? | | ???????????????????????????????????? ???????????? | | ???????????????????????????????? ??" +??????????? | | ???????????????????????????????" ??" #??????????? | | ??????????????????????????????? ?? +??????????? | | ??????????????????????????????"" """ #??????????? | | ??????????????????????????"" """ """ #??????????? | | ???????????????????????????" """ """ #??????????? | | ???????????????????????????? """ #??????????? | | ????????????????????????????? #??????????? | | ?????????????????????????????? #??????????? | | ??????????????????????????????? #??????????? | | ???????????????????????########## #??????????? | | ???????????????????# """T""" # k ############ | | ???????????????????? ! """ """ # # | | ????????????????????? # R*# | | ???????????????????? """ """ # [*%# """ """ "" | | ???????????????????# """ """ + [*+ """ """ "" | | ???????????????????# """ """ # [# """ """ "" | | ???????????????????# # # | | ???????????????????# """ """ # # | | ???????????????????# """ """ # g # | | ???????????????????# """ """ % # g ############ | | ???????????????????# # g #????####??? | | ???????????????????# @ # #??? ???? | | ???????????????????############## % #??? ???? | | ????????????????????????????????# #?? ????? | | ????????????????????????????????# #? ????? | | ????????????????????????????????#k # """" ????? | | ????????????????????????????????# # """" ????? | | ??????????????????????????? """ # + """" ????? | | ??????????????????????????? """ + # """" ????? | | ??????????????????????? # #??""" ????? | | ??????????????????????? ! # #????"?????? | | ??????????????????????? ?# #??????????? | | ????????????????????????= ?# #??????????? | | ?????????????????????????#####??# ############ | | ????????????????????????????????# | | ????????????????????????????????# ##+######### | | ????????????????????????######??# # | | ???????????????????????? ??# #"" | | ???????????????????????""""""""?# #"" | | ??????????????????????? ?# #G != | | ???????????????????? """"""""" # #"" != | | ????????????????????? # #"" | | ??????????????????????????""""" + + | | ????????????????????? # # """""" | | ???????????????????? """"""""" # # """""" | | ??????????????????????? ?# #%"""""" | +----------------------------------------------------+ Best States ------------- Heat Dissipation 37 Energy Generation 16 Energy Capacity 290 Matter Stores 300 Matter Capacity 300 Sight Range 16 Robot Scan Range 15 Terrain Scan Range 20 Terrain Scan Density 10 Evasion (%) 55 Item Schematics ----------------- None Robot Schematics ------------------ None Fabricated ------------ Nothing Repaired ---------- Nothing Alien Tech Used ----------------- None Achievements -------------- None Challenges ------------ None Game ------ Seed TimingParticleRailcannon Manual? 0 Play Time 00:21:08 Cumulative 184.7 hours Start 2025.07.22 @ 22:10:39 End 2025.07.22 @ 22:29:52 Sessions 1 Manual Loads 0 Difficulty Rogue Special Mode None Game No. 445 Rogue 445 Adventurer 0 Explorer 0 Win Type - Total 8 Types 6/0/1/1/0/0/0/0/0/0 Lore% 74 Gallery% 65 Achievement% 51 Wizard Run 0 Options --------- Layout 0 ASCII 0 Keyboard 0 Movement Numpad Keybinds 0 Fullscreen 2 Font 18/Terminus Map View 76x50 Zoom Use 0% Tactical HUD 1 Map Filters NONE Filters SATURATION(100) Steam 1 RUN: df128310-4b36-451e-b39f-f7c604a4c1ba